[Event "*** Titled Tuesday Blitz AM"]
[Site "Chess.com"]
[Date "2020.01.07"]
[Round "4"]
[White "crazy_machine"]
[Black "AleksanderHnydiuk"]
[Result "0-1"]
[WhiteElo "2662"]
[BlackElo "2438"]
[TimeControl "180+2"]
[EndTime "9:52:30 PST"]
[Termination "AleksanderHnydiuk won by resignation"]

1. d4 {[%clk 0:03:01.9]} 1... Nf6 {[%clk 0:03:00.1]} 2. Nc3 {[%clk 0:03:02.6]}
2... d5 {[%clk 0:03:00]} 3. Bf4 {[%clk 0:03:03.5]} 3... a6 {[%clk 0:02:52]} 4.
e3 {[%clk 0:03:04.3]} 4... Bf5 {[%clk 0:02:52.3]} 5. Nf3 {[%clk 0:03:05]} 5...
e6 {[%clk 0:02:52.8]} 6. Ne5 {[%clk 0:03:06.3]} 6... h6 {[%clk 0:02:44.4]} 7.
Bd3 {[%clk 0:03:04.6]} 7... Bxd3 {[%clk 0:02:41.7]} 8. Qxd3 {[%clk 0:03:06.5]}
8... Be7 {[%clk 0:02:37.3]} 9. O-O {[%clk 0:03:07.6]} 9... O-O {[%clk
0:02:38.1]} 10. e4 {[%clk 0:03:06.9]} 10... Bb4 {[%clk 0:02:15.4]} 11. exd5
{[%clk 0:03:02.9]} 11... Bxc3 {[%clk 0:01:59.1]} 12. bxc3 {[%clk 0:03:01.1]}
12... Nxd5 {[%clk 0:01:54]} 13. Bg3 {[%clk 0:03:02.4]} 13... Nd7 {[%clk
0:01:51.1]} 14. Nf3 {[%clk 0:02:52.3]} 14... c5 {[%clk 0:01:25.2]} 15. Rab1
{[%clk 0:02:49.6]} 15... b5 {[%clk 0:01:23.1]} 16. c4 {[%clk 0:02:45.8]} 16...
bxc4 {[%clk 0:01:06]} 17. Qxc4 {[%clk 0:02:47.7]} 17... Qa5 {[%clk 0:01:05.9]}
18. Rb7 {[%clk 0:02:31.3]} 18... Rfd8 {[%clk 0:00:38.9]} 19. Bh4 {[%clk
0:02:28.3]} 19... N7f6 {[%clk 0:00:30.7]} 20. dxc5 {[%clk 0:02:17.2]} 20... Rac8
{[%clk 0:00:25.6]} 21. c6 {[%clk 0:02:18.4]} 21... Qc3 {[%clk 0:00:20.3]} 22.
Qxa6 {[%clk 0:01:56.9]} 22... Qxc6 {[%clk 0:00:14.8]} 23. Qxc6 {[%clk
0:01:49.9]} 23... Rxc6 {[%clk 0:00:16.7]} 24. Rc1 {[%clk 0:01:47.3]} 24... Rdc8
{[%clk 0:00:16.5]} 25. Rb2 {[%clk 0:01:47.7]} 25... Nf4 {[%clk 0:00:15.2]} 26.
Kf1 {[%clk 0:01:47]} 26... Nd3 {[%clk 0:00:15.8]} 27. Rcb1 {[%clk 0:01:46.9]}
27... Nxb2 {[%clk 0:00:16.6]} 28. Rxb2 {[%clk 0:01:48.8]} 28... Rxc2 {[%clk
0:00:17.9]} 29. Rb7 {[%clk 0:01:49.8]} 29... Rxa2 {[%clk 0:00:12.6]} 30. Rb1
{[%clk 0:01:44]} 30... Ne4 {[%clk 0:00:12.5]} 31. h3 {[%clk 0:01:41.6]} 31... f5
{[%clk 0:00:12.4]} 32. Be7 {[%clk 0:01:40.1]} 32... Rxf2+ {[%clk 0:00:08.7]} 33.
Kg1 {[%clk 0:01:41.5]} 33... Rcc2 {[%clk 0:00:09.5]} 34. Ne1 {[%clk 0:01:40.6]}
34... Rb2 {[%clk 0:00:08.6]} 35. Rc1 {[%clk 0:01:40.6]} 35... Rfe2 {[%clk
0:00:09.3]} 36. Ba3 {[%clk 0:01:37.9]} 36... Ra2 {[%clk 0:00:09.3]} 37. Bb4
{[%clk 0:01:36.9]} 37... Rab2 {[%clk 0:00:09]} 38. Ba3 {[%clk 0:01:37.6]} 38...
Ra2 {[%clk 0:00:10.3]} 39. Bb4 {[%clk 0:01:39]} 39... Kh7 {[%clk 0:00:11.6]} 40.
Bf8 {[%clk 0:01:30]} 40... Nf6 {[%clk 0:00:11.3]} 41. Be7 {[%clk 0:01:30.1]}
41... Nd5 {[%clk 0:00:11.9]} 42. Bd6 {[%clk 0:01:27.3]} 42... Ne3 {[%clk
0:00:12.7]} 43. Be5 {[%clk 0:01:26.2]} 43... Nxg2 {[%clk 0:00:12.4]} 44. Nxg2
{[%clk 0:01:27.8]} 44... Rxg2+ {[%clk 0:00:13.5]} 45. Kh1 {[%clk 0:01:29.2]}
45... Rgc2 {[%clk 0:00:13.5]} 46. Rd1 {[%clk 0:01:29.4]} 46... Rd2 {[%clk
0:00:14.1]} 47. Rc1 {[%clk 0:01:30.3]} 47... Re2 {[%clk 0:00:15.2]} 48. Bd4
{[%clk 0:01:30.4]} 48... Rh2+ {[%clk 0:00:14.7]} 49. Kg1 {[%clk 0:01:31.3]}
49... Rag2+ {[%clk 0:00:15.6]} 50. Kf1 {[%clk 0:01:32.8]} 50... Rh1+ {[%clk
0:00:16.9]} 51. Kxg2 {[%clk 0:01:34.7]} 51... Rxc1 {[%clk 0:00:18.3]} 52. Be3
{[%clk 0:01:35.9]} 52... Rc2+ {[%clk 0:00:20.2]} 53. Kf3 {[%clk 0:01:37.1]}
53... g5 {[%clk 0:00:20.6]} 54. Bd4 {[%clk 0:01:38.1]} 54... Kg6 {[%clk
0:00:21.2]} 55. Ke3 {[%clk 0:01:38]} 55... Rh2 {[%clk 0:00:21.1]} 56. Be5 {[%clk
0:01:39.1]} 56... Rxh3+ {[%clk 0:00:22.9]} 57. Kd4 {[%clk 0:01:40.7]} 57... Rh4+
{[%clk 0:00:23.3]} 58. Kc5 {[%clk 0:01:42.2]} 58... Re4 {[%clk 0:00:24.7]} 59.
Kd6 {[%clk 0:01:43.5]} 59... Kf7 {[%clk 0:00:24.9]} 60. Bc3 {[%clk 0:01:43.5]}
60... g4 {[%clk 0:00:24.9]} 61. Bd2 {[%clk 0:01:44]} 61... h5 {[%clk 0:00:25.9]}
0-1

[Event "*** Titled Tuesday Blitz AM"]
[Site "Chess.com"]
[Date "2020.01.07"]
[Round "4"]
[White "Mikasinski"]
[Black "WildTricks"]
[Result "1-0"]
[WhiteElo "2319"]
[BlackElo "2492"]
[TimeControl "180+2"]
[EndTime "9:52:37 PST"]
[Termination "Mikasinski won by resignation"]

1. e4 {[%clk 0:03:01.9]} 1... g6 {[%clk 0:03:00.4]} 2. d4 {[%clk 0:03:02.5]}
2... Bg7 {[%clk 0:03:01.5]} 3. Nc3 {[%clk 0:03:04]} 3... d6 {[%clk 0:03:02.2]}
4. Be3 {[%clk 0:03:05.1]} 4... a6 {[%clk 0:03:02.7]} 5. Qd2 {[%clk 0:03:06]}
5... b5 {[%clk 0:03:03.1]} 6. a4 {[%clk 0:02:56.7]} 6... b4 {[%clk 0:03:00.4]}
7. Nce2 {[%clk 0:02:56.7]} 7... a5 {[%clk 0:02:50.5]} 8. Ng3 {[%clk 0:02:56.8]}
8... Nf6 {[%clk 0:02:50]} 9. Bh6 {[%clk 0:02:27.4]} 9... O-O {[%clk 0:02:44.9]}
10. Bxg7 {[%clk 0:02:27.1]} 10... Kxg7 {[%clk 0:02:46.8]} 11. Nf3 {[%clk
0:02:22]} 11... Bb7 {[%clk 0:02:39.2]} 12. Bd3 {[%clk 0:02:21.3]} 12... Nbd7
{[%clk 0:02:36.4]} 13. c3 {[%clk 0:02:21.1]} 13... c5 {[%clk 0:02:35.2]} 14. Qg5
{[%clk 0:02:08.5]} 14... e6 {[%clk 0:02:18.1]} 15. Qf4 {[%clk 0:01:50.7]} 15...
e5 {[%clk 0:02:13.3]} 16. Qg5 {[%clk 0:01:45.6]} 16... exd4 {[%clk 0:02:06.6]}
17. cxd4 {[%clk 0:01:45.1]} 17... Kh8 {[%clk 0:01:52.9]} 18. O-O {[%clk
0:01:34.6]} 18... cxd4 {[%clk 0:01:40]} 19. Rfe1 {[%clk 0:00:44.6]} 19... Nc5
{[%clk 0:01:35.5]} 20. Rad1 {[%clk 0:00:41.2]} 20... Re8 {[%clk 0:01:31.2]} 21.
Bb5 {[%clk 0:00:35.9]} 21... Nfxe4 {[%clk 0:01:19.5]} 22. Qf4 {[%clk 0:00:29.2]}
22... Re7 {[%clk 0:01:10]} 23. Rxd4 {[%clk 0:00:27.1]} 23... Nxg3 {[%clk
0:01:08.1]} 24. Qf6+ {[%clk 0:00:27.9]} 24... Kg8 {[%clk 0:01:07]} 25. Rxe7
{[%clk 0:00:28.2]} 25... Qf8 {[%clk 0:00:45.2]} 26. hxg3 {[%clk 0:00:28]} 26...
Bxf3 {[%clk 0:00:34.8]} 27. gxf3 {[%clk 0:00:27.4]} 27... Ne6 {[%clk 0:00:35.7]}
28. Rh4 {[%clk 0:00:19.6]} 28... Rc8 {[%clk 0:00:35]} 29. Bc4 {[%clk 0:00:11.3]}
29... Nd8 {[%clk 0:00:26.7]} 30. b3 {[%clk 0:00:06.2]} 30... Rc5 {[%clk
0:00:25.9]} 31. Rd4 {[%clk 0:00:05.4]} 31... Rh5 {[%clk 0:00:19]} 32. Qxd6
{[%clk 0:00:03.9]} 32... Qh6 {[%clk 0:00:15.8]} 33. Re8+ {[%clk 0:00:03.9]}
33... Kg7 {[%clk 0:00:15.9]} 34. Qf8+ {[%clk 0:00:04.9]} 34... Kf6 {[%clk
0:00:17.5]} 35. Qxh6 {[%clk 0:00:04.7]} 35... Rxh6 {[%clk 0:00:19.4]} 36. Rexd8
{[%clk 0:00:05.7]} 36... Ke5 {[%clk 0:00:21.3]} 37. R8d5+ {[%clk 0:00:06.5]}
37... Ke6 {[%clk 0:00:22.1]} 38. Rh5+ {[%clk 0:00:06.4]} 1-0

[Event "*** Titled Tuesday Blitz AM"]
[Site "Chess.com"]
[Date "2020.01.07"]
[Round "4"]
[White "Arystanner"]
[Black "platy3"]
[Result "1-0"]
[WhiteElo "2734"]
[BlackElo "2875"]
[TimeControl "180+2"]
[EndTime "9:52:46 PST"]
[Termination "Arystanner won by resignation"]

1. c4 {[%clk 0:03:01.9]} 1... Nf6 {[%clk 0:02:56.2]} 2. Nc3 {[%clk 0:03:03]}
2... e6 {[%clk 0:02:53.6]} 3. e4 {[%clk 0:03:03.4]} 3... d5 {[%clk 0:02:54.7]}
4. cxd5 {[%clk 0:03:05.3]} 4... exd5 {[%clk 0:02:55.5]} 5. e5 {[%clk 0:03:07.2]}
5... Ne4 {[%clk 0:02:31.7]} 6. d4 {[%clk 0:03:04.1]} 6... Nc6 {[%clk 0:02:26.5]}
7. Bb5 {[%clk 0:03:01.2]} 7... Bb4 {[%clk 0:02:22.1]} 8. Ne2 {[%clk 0:03:02.1]}
8... O-O {[%clk 0:02:20.1]} 9. Bxc6 {[%clk 0:02:58]} 9... bxc6 {[%clk
0:02:20.5]} 10. O-O {[%clk 0:02:59]} 10... Ba6 {[%clk 0:02:17.5]} 11. Qa4 {[%clk
0:02:43.4]} 11... Nxc3 {[%clk 0:02:08.9]} 12. Qxa6 {[%clk 0:02:35.8]} 12... Qc8
{[%clk 0:01:49.5]} 13. Qd3 {[%clk 0:02:29.2]} 13... Nxe2+ {[%clk 0:01:45.2]} 14.
Qxe2 {[%clk 0:02:31]} 14... Qf5 {[%clk 0:01:34.8]} 15. Be3 {[%clk 0:02:25.1]}
15... c5 {[%clk 0:01:36]} 16. dxc5 {[%clk 0:02:26.1]} 16... Qxe5 {[%clk
0:01:32.7]} 17. a3 {[%clk 0:02:27.1]} 17... Bxc5 {[%clk 0:01:31.8]} 18. Rac1
{[%clk 0:01:42.8]} 18... d4 {[%clk 0:01:17.2]} 19. Qb5 {[%clk 0:01:40.9]} 19...
Bd6 {[%clk 0:00:43]} 20. Qxe5 {[%clk 0:01:38.9]} 20... Bxe5 {[%clk 0:00:44.9]}
21. f4 {[%clk 0:01:39.3]} 21... Bf6 {[%clk 0:00:28]} 22. Bd2 {[%clk 0:01:40.5]}
22... Rfe8 {[%clk 0:00:09]} 23. Rxc7 {[%clk 0:01:33.9]} 23... Re2 {[%clk
0:00:09.5]} 24. Rf2 {[%clk 0:01:35.2]} 24... d3 {[%clk 0:00:04.7]} 25. Rxe2
{[%clk 0:01:31.9]} 25... dxe2 {[%clk 0:00:06.6]} 26. Kf2 {[%clk 0:01:32.9]}
26... Re8 {[%clk 0:00:07.9]} 27. b4 {[%clk 0:01:13.6]} 27... Bd4+ {[%clk
0:00:04]} 28. Kf3 {[%clk 0:01:11.5]} 28... h5 {[%clk 0:00:03.7]} 29. Rc1 {[%clk
0:01:04.9]} 29... Bb2 {[%clk 0:00:04.1]} 30. Re1 {[%clk 0:01:04.7]} 30... Bxa3
{[%clk 0:00:05.5]} 31. Rxe2 {[%clk 0:01:06.2]} 31... Rxe2 {[%clk 0:00:03.3]} 32.
Kxe2 {[%clk 0:01:07.1]} 32... Bb2 {[%clk 0:00:04.3]} 33. Kd3 {[%clk 0:01:08.2]}
33... a6 {[%clk 0:00:04.1]} 34. Kc4 {[%clk 0:01:07.9]} 34... Kf8 {[%clk
0:00:04.8]} 35. Kc5 {[%clk 0:01:09.2]} 35... Ke7 {[%clk 0:00:06.2]} 36. Kb6
{[%clk 0:01:10.5]} 36... Bd4+ {[%clk 0:00:04.8]} 37. Kxa6 {[%clk 0:01:11.6]}
37... Kd7 {[%clk 0:00:06.7]} 38. Kb7 {[%clk 0:01:05.1]} 38... h4 {[%clk
0:00:05]} 39. h3 {[%clk 0:01:02.5]} 39... f5 {[%clk 0:00:06.2]} 40. b5 {[%clk
0:01:01.8]} 40... g6 {[%clk 0:00:07.7]} 41. b6 {[%clk 0:00:57.6]} 41... Bc5
{[%clk 0:00:09.2]} 42. Ka6 {[%clk 0:00:58.5]} 42... Kc6 {[%clk 0:00:06]} 43. b7
{[%clk 0:00:59.4]} 43... Kc7 {[%clk 0:00:04.9]} 44. Bc3 {[%clk 0:00:55]} 44...
Bd6 {[%clk 0:00:04.3]} 45. Be5 {[%clk 0:00:56.2]} 1-0

[Event "*** Titled Tuesday Blitz AM"]
[Site "Chess.com"]
[Date "2020.01.07"]
[Round "4"]
[White "esskeettit"]
[Black "j_coca"]
[Result "1-0"]
[WhiteElo "2454"]
[BlackElo "2157"]
[TimeControl "180+2"]
[EndTime "9:52:51 PST"]
[Termination "esskeettit won by resignation"]

1. d4 {[%clk 0:03:01.9]} 1... g6 {[%clk 0:03:00.5]} 2. Nf3 {[%clk 0:02:56.8]}
2... Bg7 {[%clk 0:02:59.3]} 3. Bf4 {[%clk 0:02:43.3]} 3... d6 {[%clk 0:02:58]}
4. e3 {[%clk 0:02:39.8]} 4... Nh6 {[%clk 0:02:58.7]} 5. c4 {[%clk 0:02:34.5]}
5... O-O {[%clk 0:02:57.3]} 6. Nc3 {[%clk 0:02:35.4]} 6... Kh8 {[%clk 0:02:58]}
7. h4 {[%clk 0:02:31.2]} 7... f6 {[%clk 0:02:58.5]} 8. d5 {[%clk 0:02:06.2]}
8... e5 {[%clk 0:02:52.9]} 9. dxe6 {[%clk 0:02:00.4]} 9... Bxe6 {[%clk
0:02:53.2]} 10. Bd3 {[%clk 0:01:58.3]} 10... Nc6 {[%clk 0:02:53.4]} 11. Qd2
{[%clk 0:01:50.7]} 11... Ne5 {[%clk 0:02:49]} 12. Nd4 {[%clk 0:01:31]} 12...
Bxc4 {[%clk 0:01:48.3]} 13. Bxc4 {[%clk 0:01:10]} 13... Nxc4 {[%clk 0:01:47.3]}
14. Qe2 {[%clk 0:01:10.7]} 14... Ne5 {[%clk 0:01:39.9]} 15. Ne6 {[%clk
0:01:09.9]} 15... Qd7 {[%clk 0:01:41.3]} 16. Nxf8 {[%clk 0:01:09.4]} 16... Rxf8
{[%clk 0:01:43.2]} 17. O-O-O {[%clk 0:01:00.9]} 17... a6 {[%clk 0:01:38.1]} 18.
f3 {[%clk 0:00:56.2]} 18... Re8 {[%clk 0:01:30.4]} 19. Kb1 {[%clk 0:00:46.7]}
19... Nc6 {[%clk 0:00:55.7]} 20. Nd5 {[%clk 0:00:44.3]} 20... Qf7 {[%clk
0:00:52.8]} 21. Qd3 {[%clk 0:00:37]} 21... Ng8 {[%clk 0:00:42.2]} 22. e4 {[%clk
0:00:25.3]} 22... Nd8 {[%clk 0:00:18.3]} 23. Qc2 {[%clk 0:00:23.5]} 23... Ne6
{[%clk 0:00:17.7]} 24. Bd2 {[%clk 0:00:22.8]} 24... c6 {[%clk 0:00:16.9]} 25.
Nf4 {[%clk 0:00:20.2]} 25... Nd4 {[%clk 0:00:17.3]} 26. Qc3 {[%clk 0:00:20.1]}
26... c5 {[%clk 0:00:18.3]} 27. Be3 {[%clk 0:00:20.7]} 27... Nb5 {[%clk
0:00:19.5]} 28. Qd3 {[%clk 0:00:20.9]} 28... Ne7 {[%clk 0:00:17.2]} 29. Nd5
{[%clk 0:00:21]} 29... Nxd5 {[%clk 0:00:18.1]} 30. Qxd5 {[%clk 0:00:22.4]} 30...
Qxd5 {[%clk 0:00:16.5]} 31. Rxd5 {[%clk 0:00:24.3]} 31... f5 {[%clk 0:00:17.6]}
32. a4 {[%clk 0:00:21.4]} 32... Nc7 {[%clk 0:00:15.7]} 33. Rxd6 {[%clk
0:00:22.8]} 33... fxe4 {[%clk 0:00:16.7]} 34. fxe4 {[%clk 0:00:23.4]} 34... Rxe4
{[%clk 0:00:15.9]} 35. Rd8+ {[%clk 0:00:21.5]} 35... Ne8 {[%clk 0:00:16.5]} 36.
Bxc5 {[%clk 0:00:21.1]} 36... Kg8 {[%clk 0:00:17.8]} 37. Rhd1 {[%clk 0:00:19.1]}
37... Bf6 {[%clk 0:00:14]} 38. Rb8 {[%clk 0:00:17]} 38... Re2 {[%clk 0:00:11.2]}
39. Ba3 {[%clk 0:00:16.7]} 39... Bxh4 {[%clk 0:00:08]} 40. Rxb7 {[%clk
0:00:15.6]} 40... Re1 {[%clk 0:00:05.6]} 41. Rxe1 {[%clk 0:00:16.2]} 41... Bxe1
{[%clk 0:00:07.5]} 42. Re7 {[%clk 0:00:17.5]} 1-0

[Event "*** Titled Tuesday Blitz AM"]
[Site "Chess.com"]
[Date "2020.01.07"]
[Round "4"]
[White "Philosopherrr"]
[Black "korbul"]
[Result "1-0"]
[WhiteElo "2451"]
[BlackElo "2639"]
[TimeControl "180+2"]
[EndTime "9:52:52 PST"]
[Termination "Philosopherrr won by checkmate"]

1. e4 {[%clk 0:03:01.9]} 1... c5 {[%clk 0:03:00.7]} 2. Nf3 {[%clk 0:03:01.9]}
2... e6 {[%clk 0:03:01.6]} 3. d4 {[%clk 0:03:02.5]} 3... cxd4 {[%clk 0:03:02.3]}
4. Nxd4 {[%clk 0:03:04.4]} 4... Nf6 {[%clk 0:03:03.3]} 5. Nc3 {[%clk 0:03:04.3]}
5... d6 {[%clk 0:03:04.5]} 6. g4 {[%clk 0:03:04.6]} 6... a6 {[%clk 0:03:05.2]}
7. Bg2 {[%clk 0:03:05.5]} 7... h6 {[%clk 0:02:59.8]} 8. h3 {[%clk 0:02:57]} 8...
Qc7 {[%clk 0:03:00.4]} 9. O-O {[%clk 0:02:57.3]} 9... Nc6 {[%clk 0:02:59.2]} 10.
Be3 {[%clk 0:02:57.9]} 10... Bd7 {[%clk 0:02:58]} 11. Nxc6 {[%clk 0:02:54.7]}
11... Bxc6 {[%clk 0:02:58.8]} 12. Re1 {[%clk 0:02:55.3]} 12... Be7 {[%clk
0:02:58.9]} 13. a4 {[%clk 0:02:55.4]} 13... b6 {[%clk 0:02:49.6]} 14. Qd2 {[%clk
0:02:18.3]} 14... O-O {[%clk 0:02:48.2]} 15. f4 {[%clk 0:02:14.9]} 15... Rfd8
{[%clk 0:02:43.6]} 16. Qf2 {[%clk 0:02:15.8]} 16... Rab8 {[%clk 0:02:44]} 17. f5
{[%clk 0:01:30.4]} 17... e5 {[%clk 0:02:41.8]} 18. Red1 {[%clk 0:01:19.1]} 18...
b5 {[%clk 0:02:41.2]} 19. axb5 {[%clk 0:01:19.5]} 19... axb5 {[%clk 0:02:41.8]}
20. Bf3 {[%clk 0:00:55.7]} 20... b4 {[%clk 0:02:41.5]} 21. Nd5 {[%clk
0:00:37.1]} 21... Bxd5 {[%clk 0:02:42.5]} 22. exd5 {[%clk 0:00:38.3]} 22... e4
{[%clk 0:02:43.8]} 23. Bg2 {[%clk 0:00:37.1]} 23... Rdc8 {[%clk 0:02:38.1]} 24.
Rd2 {[%clk 0:00:36.7]} 24... Ra8 {[%clk 0:02:28.2]} 25. Re1 {[%clk 0:00:34.2]}
25... Ra2 {[%clk 0:02:25.3]} 26. Bd4 {[%clk 0:00:35.5]} 26... Qc4 {[%clk
0:01:43.3]} 27. Bxe4 {[%clk 0:00:28]} 27... Nxe4 {[%clk 0:01:43.4]} 28. Rxe4
{[%clk 0:00:29.2]} 28... Bg5 {[%clk 0:01:41.1]} 29. Rde2 {[%clk 0:00:22.5]}
29... Qxd5 {[%clk 0:01:36.1]} 30. h4 {[%clk 0:00:21.7]} 30... Bc1 {[%clk
0:01:21.9]} 31. Qf3 {[%clk 0:00:22.9]} 31... Qa8 {[%clk 0:01:16.1]} 32. Qb3
{[%clk 0:00:16.1]} 32... Ra1 {[%clk 0:01:11.6]} 33. Kg2 {[%clk 0:00:15.2]} 33...
Re8 {[%clk 0:00:52.9]} 34. Qf3 {[%clk 0:00:16.2]} 34... Rc8 {[%clk 0:00:50.4]}
35. g5 {[%clk 0:00:16.3]} 35... hxg5 {[%clk 0:00:50.6]} 36. f6 {[%clk
0:00:15.8]} 36... Bf4 {[%clk 0:00:48.7]} 37. hxg5 {[%clk 0:00:11.3]} 37... Ra5
{[%clk 0:00:37.2]} 38. Qxf4 {[%clk 0:00:09.2]} 38... Rd5 {[%clk 0:00:35.8]} 39.
c3 {[%clk 0:00:08.4]} 39... bxc3 {[%clk 0:00:34.6]} 40. bxc3 {[%clk 0:00:10.3]}
40... Qc6 {[%clk 0:00:33.6]} 41. fxg7 {[%clk 0:00:11.2]} 41... Rb5 {[%clk
0:00:28.3]} 42. Bf6 {[%clk 0:00:11.1]} 42... Qd5 {[%clk 0:00:23]} 43. Qf3 {[%clk
0:00:11.2]} 43... Qd1 {[%clk 0:00:19.4]} 44. Re8+ {[%clk 0:00:11]} 44... Kh7
{[%clk 0:00:19.1]} 45. Qh5# {[%clk 0:00:11.7]} 1-0

[Event "*** Titled Tuesday Blitz AM"]
[Site "Chess.com"]
[Date "2020.01.07"]
[Round "4"]
[White "Endgamegenius"]
[Black "capatl"]
[Result "1-0"]
[WhiteElo "2365"]
[BlackElo "2632"]
[TimeControl "180+2"]
[EndTime "9:52:57 PST"]
[Termination "Endgamegenius won by resignation"]

1. e4 {[%clk 0:02:58.3]} 1... c5 {[%clk 0:03:01.2]} 2. Nf3 {[%clk 0:02:59.1]}
2... e6 {[%clk 0:03:02.8]} 3. d4 {[%clk 0:02:59.5]} 3... cxd4 {[%clk 0:03:04.7]}
4. Nxd4 {[%clk 0:02:59.6]} 4... a6 {[%clk 0:03:06.6]} 5. c4 {[%clk 0:02:59.4]}
5... Qc7 {[%clk 0:03:07.9]} 6. Nc3 {[%clk 0:02:59.4]} 6... d6 {[%clk 0:03:09.4]}
7. Bd3 {[%clk 0:02:59.7]} 7... Nd7 {[%clk 0:03:10.8]} 8. O-O {[%clk 0:02:58.3]}
8... Ngf6 {[%clk 0:03:12]} 9. b3 {[%clk 0:02:58.7]} 9... b5 {[%clk 0:03:10.5]}
10. Bb2 {[%clk 0:02:57]} 10... bxc4 {[%clk 0:03:09.8]} 11. Bxc4 {[%clk
0:02:57.8]} 11... Ne5 {[%clk 0:03:04.4]} 12. Be2 {[%clk 0:02:49.8]} 12... Bd7
{[%clk 0:03:01.5]} 13. Rc1 {[%clk 0:02:49.3]} 13... Qb7 {[%clk 0:03:02.6]} 14.
f4 {[%clk 0:02:48.7]} 14... Nc6 {[%clk 0:03:03.7]} 15. Bf3 {[%clk 0:02:47.8]}
15... Qa7 {[%clk 0:02:54.6]} 16. Ne2 {[%clk 0:02:25.2]} 16... e5 {[%clk
0:02:54.2]} 17. Kh1 {[%clk 0:02:24]} 17... Nxd4 {[%clk 0:02:45.4]} 18. Nxd4
{[%clk 0:02:20.2]} 18... exd4 {[%clk 0:02:46]} 19. e5 {[%clk 0:02:20.9]} 19...
dxe5 {[%clk 0:01:45.4]} 20. fxe5 {[%clk 0:02:21.2]} 20... Bc5 {[%clk 0:01:27]}
21. Rxc5 {[%clk 0:01:27.6]} 21... Qxc5 {[%clk 0:01:22.8]} 22. Bxa8 {[%clk
0:01:14.4]} 22... Ng4 {[%clk 0:01:12.8]} 23. Bxd4 {[%clk 0:01:14]} 23... Qc8
{[%clk 0:01:02.2]} 24. Bf3 {[%clk 0:00:54.4]} 24... O-O {[%clk 0:01:03.1]} 25.
h3 {[%clk 0:00:53.9]} 25... Nh6 {[%clk 0:01:04.3]} 26. Qc1 {[%clk 0:00:54.1]}
26... Qd8 {[%clk 0:00:37.9]} 27. Qf4 {[%clk 0:00:52.2]} 27... Nf5 {[%clk
0:00:37.2]} 28. Bc5 {[%clk 0:00:43.8]} 28... Re8 {[%clk 0:00:35.4]} 29. Be4
{[%clk 0:00:44.5]} 29... g6 {[%clk 0:00:17.6]} 30. g4 {[%clk 0:00:40.1]} 30...
Qh4 {[%clk 0:00:17.3]} 31. gxf5 {[%clk 0:00:39.8]} 31... Qxh3+ {[%clk
0:00:18.5]} 32. Kg1 {[%clk 0:00:40.7]} 32... Bxf5 {[%clk 0:00:18.8]} 33. Bxf5
{[%clk 0:00:39.9]} 33... gxf5 {[%clk 0:00:19.8]} 34. Rf3 {[%clk 0:00:39]} 34...
Qg4+ {[%clk 0:00:20.1]} 35. Rg3 {[%clk 0:00:39.2]} 35... Re6 {[%clk 0:00:19.3]}
36. Rxg4+ {[%clk 0:00:39.6]} 36... fxg4 {[%clk 0:00:21.2]} 37. Be7 {[%clk
0:00:39.4]} 37... Rxe7 {[%clk 0:00:21.8]} 38. Qxg4+ {[%clk 0:00:40.5]} 38... Kf8
{[%clk 0:00:23.2]} 39. Qg5 {[%clk 0:00:40.5]} 39... Re6 {[%clk 0:00:23.4]} 40.
Kf2 {[%clk 0:00:41.4]} 40... h6 {[%clk 0:00:23.7]} 41. Qf5 {[%clk 0:00:40.6]}
41... Ke7 {[%clk 0:00:23.5]} 42. Kg3 {[%clk 0:00:40.2]} 42... Rg6+ {[%clk
0:00:24.3]} 43. Kh4 {[%clk 0:00:40.8]} 43... Rg5 {[%clk 0:00:26.2]} 44. Qf6+
{[%clk 0:00:40]} 44... Ke8 {[%clk 0:00:26.9]} 45. Qc6+ {[%clk 0:00:40.2]} 45...
Kf8 {[%clk 0:00:26.7]} 46. Qxh6+ {[%clk 0:00:40.7]} 46... Rg7 {[%clk 0:00:27.9]}
47. Qxa6 {[%clk 0:00:40.8]} 47... Rg2 {[%clk 0:00:26.7]} 48. Qa8+ {[%clk
0:00:40.6]} 1-0